[Event "XTX Markets London Classic-Elite 2024"]
[Site "London"]
[Date "2024.12.05"]
[Round "6.3"]
[White "Mamedyarov, Shakhriyar"]
[Black "Adams, Michael"]
[Result "0-1"]
[WhiteElo "2738"]
[BlackElo "2662"]
[Annotator "TA"]
[PlyCount "242"]
[EventDate "2024.??.??"]
[TimeControl "60"]

{[%evp 11,242,-7,-10,-1,0,-12,10,12,0,0,1,0,0,10,0,-8,8,-22,-8,-17,0,-18,13,12,7,0,0,0,16,18,42,16,9,14,56,47,59,52,53,53,62,62,66,66,66,60,66,67,75,75,63,64,64,50,57,29,37,30,58,26,47,26,72,37,74,27,79,38,40,60,102,102,94,86,94,94,94,94,102,94,94,0,102,94,95,94,94,0,102,69,69,45,69,69,70,64,97,70,70,61,61,49,63,61,66,63,63,64,64,64,64,64,64,64,64,68,68,68,68,0,89,89,89,89,76,83,89,89,89,89,89,89,89,0,0,0,0,0,0,0,0,0,0,0,0,0,0,-8,0,0,0,0,0,-506,-510,-692,-656,-525,-209,-209,-209,-208,-202,-196,-200,-202,0,-156,0,-209,-209,-220,-163,-163,-163,-163,-185,-186,-163,-359,-341,-359,-356,-345,-330,-400,-400,-400,-400,-396,0,-375,-386,-402,-402,-395,-303,-303,-292,-384,-203,-386,-486,-487,-554,-483,-491,-562,-499,-562,-562,-520,-416,-486,-478,-2343,-2204,-1470,0,-933,0,-1532,-1483,-836,-285,-528,-496,-29975,-29976,-29976,-29977,-29976,-29976]} 1. c4 {[%emt 0:00:03]} e5 {[%emt 0:00:07]} 2. Nc3 {[%emt 0:00:08]} Nf6 {[%emt 0:00:08]} 3. Nf3 {[%emt 0:00:06]} Nc6 {[%emt 0:00:06]} 4. e3 {[%emt 0:00:06]} Bb4 {[%emt 0:00:42]} 5. Qc2 {[%emt 0:00:06]} Bxc3 {[%emt 0:00:56]} 6. bxc3 {[%emt 0:00:05]} O-O {[%emt 0:02:12]} 7. e4 {[%emt 0:00:06]} d6 {[%emt 0:00:14]} 8. Be2 {[%emt 0:00:04]} ({RR} 8. g3 Kh8 9. d3 Ng8 10. Nh4 Nge7 11. Bg2 f5 12. exf5 Nxf5 13. Nf3 Nfe7 14. O-O h6 15. Be3 Bf5 16. Nh4 Bh7 17. Qe2 Qd7 18. d4 Nf5 19. Nxf5 Bxf5 20. Rfe1 Rae8 21. Qb2 b6 22. c5 exd4 {So,W (2765)-Harikrishna,P (2729) Kolkata 2018 1-0 (71)}) ({RR} 8. g3 Nd7 9. Nh4 Nc5 10. Bg2 a6 11. Nf5 Be6 12. Ne3 b5 13. Ba3 Nd7 14. d3 bxc4 15. dxc4 Nb6 16. c5 Nc4 17. Nxc4 Bxc4 18. Bf1 Bxf1 19. Kxf1 d5 20. Rd1 d4 21. Bb2 Qf6 22. Kg2 Rfd8 {Grigoryan,K (2580)-Zhao,E (2352) Dulles USA 2024 ½-½ (110)}) 8... Ne7 {[%emt 0:06:02]} 9. O-O {[%emt 0:01:43] The position is equal.} Ng6 {[%emt 0:01:29]} 10. Re1 $146 {[%emt 0:00:32]} ({RR} 10. d3 h6 11. Re1 Nh7 12. Be3 f5 13. exf5 Bxf5 14. Nd2 Kh8 15. Rad1 Nf4 16. Bf1 Qf6 17. f3 Qg6 18. Ne4 Bxe4 19. fxe4 b6 20. Kh1 Rf7 21. g3 Ne6 22. Bh3 Rf6 23. Bf5 Qh5 24. Qe2 Qxe2 {Dragnev,V (2521)-Rubes,J (2352) Teplice 2019 1-0 (65)}) 10... Re8 {[%emt 0:02:52]} 11. a4 {[%emt 0:00:23]} c6 {[%emt 0:03:57]} 12. d3 {[%emt 0:05:22]} d5 {[%emt 0:01:28]} 13. h3 {[%emt 0:16:19]} h6 {[%emt 0:05:20]} 14. Bf1 {[%emt 0:00:43]} dxe4 {[%emt 0:07:45]} 15. dxe4 {[%emt 0:00:05]} Be6 {[%emt 0:00:56]} 16. Be3 {[%emt 0:01:53]} Nd7 {[%emt 0:09:07]} 17. a5 {[%emt 0:02:57]} b6 {[%emt 0:06:33]} 18. Qa4 {[%emt 0:03:05]} Rc8 {[%emt 0:02:52]} 19. Red1 {[%emt 0:02:55]} Qc7 {[%emt 0:00:29]} 20. Ne1 {[%emt 0:01:01]} Ngf8 {[%emt 0:04:45]} 21. Nd3 {[%emt 0:06:56]} c5 {[%emt 0:04:48]} 22. Ne1 {[%emt 0:07:05]} Nb8 {[%emt 0:06:22]} 23. Nc2 {[%emt 0:03:10]} Nc6 {[%emt 0:03:51]} 24. axb6 {[%emt 0:47:37]} axb6 {[%emt 0:00:05]} 25. f3 {[%emt 0:00:00]} Qb7 {[%emt 0:07:47]} 26. Bf2 {[%emt 0:00:00]} Ra8 {[%emt 0:03:59]} 27. Qb5 {[%emt 0:00:00]} Nd7 {[%emt 0:01:06]} 28. Ne3 {[%emt 0:00:00]} Rxa1 {[%emt 0:01:17]} 29. Rxa1 {[%emt 0:00:00]} Ra8 {[%emt 0:00:09]} 30. Rxa8+ {[%emt 0:00:00]} Qxa8 {[%emt 0:00:02]} 31. Nd5 {[%emt 0:00:00][%cal Ob5c6]} Na5 {[%emt 0:00:58]} 32. g3 {[%emt 0:00:00]} Kh8 {[%emt 0:03:26]} 33. f4 {[%emt 0:00:00]} (33. Nxb6 Nxb6 34. Qxb6 Nxc4 35. Bxc4 (35. Qxc5 Qa1 $17) 35... Bxc4 $11) 33... exf4 {[%emt 0:01:00]} 34. gxf4 {[%emt 0:00:00]} Qd8 {[%emt 0:04:17]} 35. Bg2 {[%emt 0:00:00]} f6 {[%emt 0:00:43][%cal Bf7f6,Bf6f5][%mdl 32]} 36. Bg3 {[%emt 0:00:00]} Kg8 {[%emt 0:03:44]} (36... f5 $1 $11) 37. Kh2 {[%emt 0:00:00][%cal Bg1h2,Bh2g2,Bg2f2][%mdl 32]} Kf7 {[%emt 0:01:08]} 38. Bf3 {[%emt 0:00:00]} ({Better is} 38. Ne3 $16 {aiming for f5.} Kg8 39. Qa6) 38... Kg8 {[%emt 0:01:34]} (38... f5 $11 {remains equal.}) 39. Kg2 {[%emt 0:00:00]} f5 {[%emt 0:01:24]} 40. e5 {[%emt 0:00:00]} Kf7 {[%emt 0:00:54]} 41. h4 {[%emt 0:27:04]} g6 {[%emt 0:06:50]} 42. Kf2 {[%emt 0:00:00]} h5 {[%emt 0:05:28]} 43. Kg2 {[%emt 0:00:00]} Kg7 {[%emt 0:03:42]} 44. Bf2 {[%emt 0:00:00]} Kf7 {[%emt 0:00:51]} 45. Ne3 {[%emt 0:00:00]} Kg7 {[%emt 0:02:08]} 46. Nd5 {[%emt 0:00:00]} Kf7 {[%emt 0:00:04] Black is weak on the dark squares} 47. Kh2 {[%emt 0:00:00]} Kg7 {[%emt 0:00:38]} 48. Kg3 {[%emt 0:00:00]} Qb8 {[%emt 0:01:45]} 49. Kh2 {[%emt 0:00:00]} Qd8 {[%emt 0:00:09]} 50. Ne3 {[%emt 0:00:00]} Nf8 {[%emt 0:00:29][%cal Oa5c4]} 51. Kg3 {[%emt 0:00:00]} Qb8 {[%emt 0:03:43]} 52. Bg2 {[%emt 0:01:33]} Bd7 {[%emt 0:02:20]} 53. Qb1 {[%emt 0:00:02]} Be6 {[%emt 0:01:11]} 54. Bd5 {[%emt 0:00:22]} Bd7 {[%emt 0:00:57]} 55. Nf1 {[%emt 0:02:39] Threatens to win with Bxc5.} Qd8 {[%emt 0:00:57]} 56. Nh2 {[%emt 0:00:28]} Be6 {[%emt 0:03:46]} 57. Qa2 {[%emt 0:00:08]} Bf7 {[%emt 0:01:43]} 58. Nf3 {[%emt 0:00:27]} Ne6 {[%emt 0:00:26]} 59. Qb1 {[%emt 0:00:25]} Qc7 {[%emt 0:00:51]} 60. Qb5 {[%emt 0:00:24]} Nb7 {[%emt 0:00:28]} 61. Nd2 {[%emt 0:01:40]} Nbd8 {[%emt 0:00:43]} 62. Qa4 {[%emt 0:01:31]} Kf8 {[%emt 0:01:48][%cal Bg7f8,Bf8e8,Be8d7][%mdl 32]} 63. Nf1 {[%emt 0:00:10]} Be8 {[%emt 0:00:33]} 64. Qa1 {[%emt 0:00:10]} Bc6 {[%emt 0:01:31]} 65. Ne3 {[%emt 0:00:05]} ({White should try} 65. Qa6 $14) 65... Qb7 {[%emt 0:00:12]} (65... g5 $1 $11 66. hxg5 (66. fxg5 $2 f4+ 67. Kh2 fxe3 $19) 66... h4+ 67. Kf3 (67. Kxh4 $2 Nxf4 68. Qd1 Qxe5 $19) 67... Qh7 68. Bxc6 Qh5+ 69. Kg2 Nxf4+ 70. Kh1 Nxc6 71. Qa8+ Qe8 72. Qxe8+ Kxe8) 66. Qb1 $16 {[%emt 0:01:23]} Ke8 {[%emt 0:02:31]} 67. Bxc6+ {[%emt 0:03:58]} Qxc6 {[%emt 0:00:45]} 68. Nd5 {[%emt 0:00:06]} Nc7 {[%emt 0:00:19] Inhibits Qb5.} 69. Nxb6 {[%emt 0:02:37]} ({Don't take} 69. Qxb6 Qxb6 70. Nxb6 Na6 $14) 69... Nde6 {[%emt 0:00:24]} 70. Nc8 $1 {[%emt 0:00:04]} Kd7 {[%emt 0:00:44]} 71. Nd6 {[%emt 0:00:02]} Ne8 {[%emt 0:00:52]} 72. Nb5 {[%emt 0:02:38]} (72. Nxe8 $16 Kxe8 73. Qb8+ Kf7 74. Qa7+ Kg8 75. Qe7) 72... Qe4 $1 $11 {[%emt 0:00:16]} 73. Qd1+ {[%emt 0:02:18]} Ke7 {[%emt 0:00:29] Chess con chili.} 74. Qd2 {[%emt 0:00:02]} Qxc4 {[%emt 0:00:29]} 75. Na3 {[%emt 0:01:08][%cal Bb5a3,Ba3c2,Bc2e1,Be1d3,Bd3c5][%mdl 32]} Qb3 {[%emt 0:00:23]} 76. Nc2 {[%emt 0:00:15]} Qa4 {[%emt 0:00:53]} 77. Be3 {[%emt 0:00:16]} Qe4 $36 {[%emt 0:00:18][%mdl 2048] Black has the initiative.} 78. Ne1 {[%emt 0:00:34]} N8c7 {[%emt 0:00:25]} 79. Nd3 {[%emt 0:01:23]} Qd5 {[%emt 0:00:44]} 80. c4 {[%emt 0:00:29]} Qxc4 {[%emt 0:00:24] ...Nd5 would now be deadly.} 81. Nxc5 $1 {[%emt 0:00:03]} Nd5 {[%emt 0:00:24]} 82. Qa5 $2 {[%emt 0:02:15][%mdl 8192]} Qe2 $19 {[%emt 0:00:25]} ({And not} 82... Nxe3 83. Qa7+ Kf8 84. Nxe6+ Qxe6 85. Qa3+ Ke8 86. Qxe3 $11) 83. Qa7+ {[%emt 0:00:30]} Nec7 {[%emt 0:00:18] Excellent horsemanship.} 84. Bf2 {[%emt 0:01:16]} Qg4+ $2 {[%emt 0:00:09]} (84... g5 {(  ...gxh4+)} 85. Nb3 (85. fxg5 {leads to mate.} f4+ 86. Kh3 Qf3+ 87. Kh2 Qxf2+ 88. Kh1 f3) 85... Qd3+ (85... gxf4+ $2 86. Kh2 $19) 86. Kh2 Qxb3 87. fxg5 Qb2) 85. Kh2 {[%emt 0:00:01]} Qxf4+ {[%emt 0:00:08]} 86. Kg1 {[%emt 0:00:04]} Qg4+ {[%emt 0:00:31]} 87. Kh2 {[%emt 0:00:04]} Qe2 {[%emt 0:00:30][%csl Be5,Bf2] Against Nd3} 88. Kg1 {[%emt 0:00:06]} Qg4+ {[%emt 0:01:34]} 89. Kh2 $1 {[%emt 0:00:02] [#]} Qf4+ {[%emt 0:00:31]} (89... Qc4 $1 $17 90. Nb7 Qf4+ 91. Bg3 Qd2+ 92. Bf2 Ke6 93. Nd8+ Kxe5 94. Nf7+ Kf6) 90. Kg1 $1 {[%emt 0:00:01]} Qxe5 {[%emt 0:00:25]} 91. Qa4 {[%emt 0:00:21]} Kf7 {[%emt 0:00:28]} 92. Nd3 {[%emt 0:00:11]} Qd6 {[%emt 0:00:31]} 93. Qd4 {[%emt 0:00:54]} Ne6 {[%emt 0:00:15]} 94. Ne5+ {[%emt 0:00:58]} Kf6 {[%emt 0:00:37]} 95. Ng4+ $2 {[%emt 0:00:04]} (95. Nc4+ Nxd4 96. Bxd4+ Ke7 97. Nxd6) 95... Ke7 {[%emt 0:00:03]} 96. Qa7+ {[%emt 0:00:06]} Qc7 {[%emt 0:00:37][%cal Oc7a7] ...Qxa7! is the strong threat.} 97. Qa3+ {[%emt 0:01:09] [#]} Kf7 $1 {[%emt 0:00:08]} 98. Ne3 {[%emt 0:00:02]} Nxe3 {[%emt 0:00:10]} 99. Qxe3 {[%emt 0:00:01][%mdl 4096] Endgame. KQB-KQN} Qf4 {[%emt 0:01:47]} 100. Qa7+ {[%emt 0:00:05]} Qc7 {[%emt 0:00:05] Strongly threatening ...Qxa7.} 101. Qe3 $1 {[%emt 0:00:04]} Qd7 {[%emt 0:00:12]} 102. Qb3 {[%emt 0:00:07]} Qc6 {[%emt 0:00:10]} 103. Qa2 {[%emt 0:00:06]} Qb7 {[%emt 0:00:16]} 104. Be3 {[%emt 0:00:23]} Qe7 {[%emt 0:00:36]} 105. Qc4 {[%emt 0:00:13]} Kg7 {[%emt 0:00:17]} (105... Qd6 $142 {Hoping for ...Qg3+.} 106. Bf2 Qd1+ 107. Kh2 Qb1) 106. Qc3+ $2 {[%emt 0:01:51]} (106. Qd5) 106... Qf6 {[%emt 0:00:08]} 107. Qb4 {[%emt 0:00:05]} f4 {[%emt 0:00:41]} 108. Bf2 {[%emt 0:00:11]} Kh6 {[%emt 0:01:03]} 109. Qd6 {[%emt 0:01:22]} g5 {[%emt 0:01:17]} 110. hxg5+ {[%emt 0:00:04]} Qxg5+ {[%emt 0:00:29]} 111. Kh2 {[%emt 0:00:01]} Qf5 {[%emt 0:00:14]} 112. Qb8 {[%emt 0:00:38]} Qc2 {[%emt 0:00:39]} 113. Kg1 {[%emt 0:00:42]} (113. Qh8+ $142 Kg5 114. Qg8+ Qg6 115. Qa8) 113... Qd1+ {[%emt 0:00:28]} 114. Kh2 {[%emt 0:00:01]} Qc2 {[%emt 0:00:04]} 115. Kg1 $1 {[%emt 0:00:02]} Qd1+ {[%emt 0:00:45]} (115... Qe2 $142 116. Qd6 Kg5 117. Qd5+ Kf6) 116. Kh2 {[%emt 0:00:02]} Qe2 {[%emt 0:00:18] Against Qe5} 117. Kg1 {[%emt 0:00:01]} Qg4+ $2 {[%emt 0:00:26]} (117... Kg6 118. Qb1+ Kg5) 118. Kh2 $2 {[%emt 0:00:02]} (118. Kf1) 118... f3 {[%emt 0:00:19]} 119. Bg3 {[%emt 0:00:43]} (119. Be3+ $19 Kg6 120. Qb1+ Kf6 121. Qf1) 119... Qd4 {[%emt 0:00:23] Black mates.} 120. Qe5 {[%emt 0:01:30]} Qxe5 {[%emt 0:00:37]} 121. Bxe5 {[%emt 0:00:11]} h4 {[%emt 0:00:09] Weighted Error Value: White=0.13 (very precise) /Black=0.10 (very precise) . Loses game: 	White=1 	--- Mistake: 	White=7 	Black=5 Inaccurate: 	White=9 	Black=6 OK: 	White=39 	Black=46 Best: 	White=6 	Black=10 Strong: 	White=5 	Black=2} 0-1

[Event "XTX Markets London Classic-Elite 2024"]
[Site "London"]
[Date "2024.12.05"]
[Round "6.4"]
[White "Hong, Andrew"]
[Black "Jones, Gawain C B"]
[Result "1/2-1/2"]
[WhiteElo "2572"]
[BlackElo "2639"]
[Annotator "TA"]
[PlyCount "92"]
[EventDate "2024.??.??"]
[TimeControl "60"]

{[%evp 15,92,9,10,0,0,0,9,14,21,18,17,17,25,17,15,0,30,42,48,44,43,50,63,45,58,40,36,36,58,49,63,37,64,58,55,63,73,67,91,82,101,0,93,52,52,57,57,44,37,37,58,58,58,58,58,48,48,37,39,46,40,0,0,0,0,0,0,0,0,0,0,0,0,0,0,0,0,0,0]} 1. e4 {[%emt 0:00:12]} e5 {[%emt 0:00:29]} 2. Nf3 {[%emt 0:00:18]} Nc6 {[%emt 0:00:14]} 3. Bb5 {[%emt 0:00:34]} Nf6 {[%emt 0:00:21]} 4. Nc3 {[%emt 0:06:49]} Nd4 {[%emt 0:02:13]} 5. O-O {[%emt 0:00:26]} Nxb5 {[%emt 0:05:21]} 6. Nxb5 {[%emt 0:01:57]} c6 {[%emt 0:00:06]} 7. Nc3 {[%emt 0:00:15]} d6 {[%emt 0:00:05]} 8. d4 {[%emt 0:00:38]} Qc7 {[%emt 0:00:06]} 9. Bg5 {[%emt 0:01:37]} Be7 {[%emt 0:00:05]} 10. a4 {[%emt 0:03:58]} a5 {[%emt 0:02:07]} 11. Qd3 {[%emt 0:00:50]} h6 {[%emt 0:04:51]} 12. Bxf6 {[%emt 0:03:49]} Bxf6 {[%emt 0:02:26]} 13. d5 {[%emt 0:00:15]} Be7 {[%emt 0:02:53]} ({RR} 13... O-O 14. Rfd1 Be7 15. Nd2 Bg4 16. f3 Bd7 17. Nc4 Rad8 18. Kh1 f5 19. Ne3 Qc8 20. Nxf5 Bxf5 21. exf5 Rxf5 22. Ne4 Kh8 23. Ra3 cxd5 24. Rc3 Qd7 25. Qxd5 Qxa4 26. Qxb7 Rd7 27. Rc8+ Kh7 28. Qd5 {Garrido Outon,A (2406)-Ruiz Buendia,M (2304) Madrid ESP 2024 1-0 (37)}) 14. Nd2 {[%emt 0:01:19]} O-O {[%emt 0:01:48]} 15. Nc4 {[%emt 0:03:06]} Qb8 $146 {[%emt 0:05:50]} ({RR} 15... f5 16. Rad1 fxe4 17. Nxe4 Bf5 18. Rfe1 Rad8 19. Qb3 Kh8 20. Qb6 Qxb6 21. Nxb6 Bg6 22. b3 Bf7 23. c4 c5 24. Nc3 Bg6 25. Nb5 Rf6 26. g3 Bf5 27. f4 Rdf8 28. fxe5 dxe5 29. d6 Bd8 30. Nd5 {Korchmar,V (2438)-Tari,A (2620) chess.com INT 2023 0-1 (41)}) 16. Rfd1 {[%emt 0:14:06]} Bg4 {[%emt 0:15:33]} 17. Rdb1 {[%emt 0:07:25]} Qa7 {[%emt 0:04:34]} 18. h3 {[%emt 0:04:34]} Bd7 {[%emt 0:01:01]} 19. Rd1 {[%emt 0:27:15][%cal Oc4d6]} (19. b4 {feels hotter.} Bh4 20. Qe3 axb4 21. Rxb4 Qxe3 22. fxe3 cxd5 23. Nb6) 19... Rfd8 {[%emt 0:03:51]} 20. Qe3 {[%emt 0:02:07]} Qxe3 {[%emt 0:02:46]} 21. Nxe3 {[%emt 0:00:23]} g6 {[%emt 0:01:52]} 22. Rd3 {[%emt 0:05:08]} f5 {[%emt 0:04:56]} 23. f3 {[%emt 0:01:24]} Ra6 {[%emt 0:11:18]} 24. Rad1 {[%emt 0:03:06]} Rf8 {[%emt 0:10:31]} 25. Kh2 {[%emt 0:04:37]} cxd5 {[%emt 0:05:33]} 26. Nexd5 {[%emt 0:02:00]} Bd8 {[%emt 0:00:20]} 27. Ne3 {[%emt 0:01:13] White is more active. A dynamic duo of knights.} Be7 {[%emt 0:00:52]} 28. Ned5 {[%emt 0:01:48]} Bd8 {[%emt 0:00:15]} 29. Nb5 {[%emt 0:01:01]} fxe4 {[%emt 0:00:53]} 30. fxe4 {[%emt 0:00:04]} Rf2 {[%emt 0:00:06]} 31. R1d2 {[%emt 0:01:43]} Rxd2 {[%emt 0:00:41]} 32. Rxd2 {[%emt 0:00:01]} Rc6 {[%emt 0:00:21]} 33. b3 {[%emt 0:00:28]} Bg5 {[%emt 0:03:36]} 34. Rf2 {[%emt 0:00:12]} Kg7 {[%emt 0:00:08]} 35. g3 {[%emt 0:01:39]} h5 {[%emt 0:00:33]} 36. h4 {[%emt 0:00:09]} Bd8 {[%emt 0:00:05]} 37. c3 {[%emt 0:01:24]} g5 {[%emt 0:04:00]} 38. Ne3 {[%emt 0:01:04]} gxh4 {[%emt 0:00:19] The position is equal.} 39. gxh4 {[%emt 0:00:13]} Bxh4 {[%emt 0:00:29]} 40. Nf5+ {[%emt 0:00:35]} Bxf5 {[%emt 0:01:12]} 41. Rxf5 $11 {[%emt 0:30:09][%mdl 4096] Endgame. KRB-KRN} Be1 {[%emt 0:32:43]} 42. Rf3 {[%emt 0:00:00]} Kg6 {[%emt 0:00:00]} 43. Kh3 {[%emt 0:00:00]} Bd2 {[%emt 0:00:00]} 44. Rd3 {[%emt 0:00:00][%csl Bd2,Bd6]} Be1 {[%emt 0:00:00]} 45. Rf3 {[%emt 0:00:00]} Bd2 {[%emt 0:00:00]} 46. Rd3 {[%emt 0:00:00][%csl Bd2,Bd6]} Be1 {[%emt 0:00:00] Weighted Error Value: White=0.10 (very precise) /Black=0.06 (flawless) . Inaccurate: 	White=3 	Black=2 OK: 	White=13 	Black=13 Best: 	White=1 	Black=2} 1/2-1/2

[Event "XTX Markets London Classic-Elite 2024"]
[Site "London"]
[Date "2024.12.06"]
[Round "7.1"]
[White "Jones, Gawain C B"]
[Black "Ju, Wenjun"]
[Result "1-0"]
[WhiteElo "2639"]
[BlackElo "2563"]
[Annotator "TA"]
[PlyCount "81"]
[EventDate "2024.??.??"]
[TimeControl "60"]

{[%evp 23,81,29,55,38,36,37,105,43,39,28,18,14,35,18,22,23,64,56,75,66,107,107,107,104,104,104,104,104,150,105,105,105,118,118,127,119,134,134,134,134,134,134,134,134,135,135,152,142,142,142,135,104,150,149,216,215,233,222,243,243]} 1. Nf3 {[%emt 0:00:24]} d5 {[%emt 0:00:11]} 2. g3 {[%emt 0:00:09]} c5 {[%emt 0:00:34]} 3. Bg2 {[%emt 0:00:51]} Nf6 {[%emt 0:00:20]} 4. O-O {[%emt 0:00:08]} g6 {[%emt 0:01:19]} 5. c4 {[%emt 0:00:42]} Bg7 {[%emt 0:00:23]} 6. cxd5 {[%emt 0:01:14]} Nxd5 {[%emt 0:00:19]} 7. Nc3 {[%emt 0:06:15]} O-O {[%emt 0:01:04]} 8. Nxd5 {[%emt 0:01:18]} Qxd5 {[%emt 0:00:05]} 9. d3 {[%emt 0:00:04]} Nc6 {[%emt 0:00:49]} 10. Be3 {[%emt 0:02:53]} Bxb2 {[%emt 0:01:20]} 11. Rb1 {[%emt 0:07:36]} Bg7 {[%emt 0:00:06]} 12. Qa4 {[%emt 0:03:11]} ({RR} 12. Nd4 Qxa2 13. Nxc6 bxc6 14. Bxc6 Bh3 15. Bxa8 Rxa8 16. Re1 a5 17. Qb3 Qxb3 18. Rxb3 a4 19. Ra3 Bb2 20. Ra2 a3 21. Bxc5 Be6 22. Rxb2 axb2 23. Bd4 Rb8 24. Rb1 Rb4 25. Bc3 Rb3 26. Bd4 Rb4 {Shevchenko,K (2684)-Harikrishna,P (2704) chess.com INT 2023 ½-½}) 12... Qd6 {[%emt 0:21:31]} ({RR} 12... Qd7 13. Bxc5 Nd4 14. Qd1 Nb5 15. Qc2 b6 16. Nd4 Bxd4 17. Rxb5 bxc5 18. Rbb1 Ba6 19. Bxa8 Rxa8 20. Rb3 Bb7 21. Rfb1 Bd5 22. Rb8+ Rxb8 23. Rxb8+ Kg7 24. e3 Qh3 25. e4 Be6 26. Rb7 Bg4 27. Qb1 {Bayaca,S (2186)-Tang,B (2236) chess.com INT 2024 0-1 (37)}) 13. Nd2 {[%emt 0:12:02]} Nd4 {[%emt 0:08:19]} 14. Bxd4 {[%emt 0:01:31]} Bxd4 $146 {[%emt 0:02:32]} ({Better is} 14... Qxd4 $14 15. Qxd4 cxd4) ({RR} 14... cxd4 15. Bxb7 Bxb7 16. Rxb7 Qe6 17. Ne4 h6 18. Qd7 Qxa2 19. Qxe7 a5 20. Rfb1 a4 21. Nd6 a3 22. h4 Ra7 23. Rxa7 Qxb1+ 24. Kg2 Qb3 25. Qb7 Rb8 26. Qxb3 {1-0 (26) Babiy,I (2241)-Bin Nun,P (1999) Chess.com INT 2020}) ({RR} 14... cxd4 15. Bxb7 Rb8 16. Bxc8 Rfxc8 17. Rxb8 Rxb8 18. Qxa7 Qd8 19. Qa3 Ra8 20. Qb2 Qa5 21. Ra1 Rc8 22. Nc4 Qf5 23. a4 Bf6 24. Rb1 Kg7 25. Qb7 h5 26. a5 Rxc4 27. dxc4 Qxa5 28. Qb5 Qc3 29. Qb3 {Babiy,I (2241)-Sydoryka,V (2308) Kyiv UKR 2021 1-0 (33)}) 15. Nc4 {[%emt 0:09:31]} (15. Ne4 $1 $16 {[%cal Re4d6]} Qc6 16. Qa3 (16. Qxc6 bxc6 17. e3 Bg7 $18)) 15... Qc7 $14 {[%emt 0:02:02]} 16. Qa3 {[%emt 0:10:20]} Rb8 {[%emt 0:36:37]} 17. Qxa7 {[%emt 0:00:23]} Bg4 {[%emt 0:00:57] This pair of bishops is nice.} 18. e3 {[%emt 0:00:36]} (18. Bxb7 $2 Bxe2 19. Qb6 Qd7 $19) 18... Bf6 {[%emt 0:01:00]} 19. Rfc1 {[%emt 0:07:31][%cal Oc4b6]} (19. Bxb7 $2 Bc8 (19... Be2 20. Qb6 $17) 20. Na5 Bc3 $19) (19. Rxb7 {simplifies} Rxb7 20. Qxb7 Qxb7 21. Bxb7 Be2 22. Rc1) 19... Ra8 {[%emt 0:02:49]} 20. Qb6 {[%emt 0:00:39]} Qd7 {[%emt 0:02:36]} 21. Qb3 {[%emt 0:04:48][%cal Oc4b6] Threatens to win with Nb6!} Be6 {[%emt 0:03:59]} 22. Nb6 {[%emt 0:05:31]} Qd6 {[%emt 0:04:44] [#]} 23. Bd5 {[%emt 0:01:39]} Bxd5 {[%emt 0:00:02]} 24. Qxd5 {[%emt 0:00:17]} Qxd5 {[%emt 0:01:34]} 25. Nxd5 {[%emt 0:00:05]} Ra3 {[%emt 0:00:17]} (25... Rfb8 $142) 26. Rb3 {[%emt 0:08:17]} (26. Rxc5 Rb8 27. Rc7 Rxd3 28. Nxf6+ (28. Rbxb7 Rxb7 29. Nxf6+ exf6 $14) (28. Nxe7+ Bxe7 29. Rxe7 Ra3 $16) 28... exf6 $14) 26... Rxa2 {[%emt 0:00:14]} 27. Rxc5 {[%emt 0:00:17]} (27. Nxf6+ exf6 28. Rxc5 (28. Rxb7 Rd2 $11) 28... Rd2 $11) 27... Rfa8 {[%emt 0:02:27]} 28. d4 {[%emt 0:06:07]} (28. Nxf6+ $6 exf6 29. Rxb7 Rd2 $11) 28... Rd2 {[%emt 0:02:29]} 29. Nc3 {[%emt 0:00:06]} ({Much weaker is} 29. Rxb7 $6 Ra1+ 30. Kg2 Raa2 $11) (29. Nxf6+ $6 exf6 30. e4 (30. Rxb7 Ra1+ 31. Kg2 Raa2 $11) 30... Kg7 $11 (30... Rxd4 31. Rxb7 Rxe4 32. h4 $11)) 29... Ra1+ {[%emt 0:02:01]} 30. Kg2 {[%emt 0:00:04]} Rc1 {[%emt 0:00:07]} 31. Ne4 {[%emt 0:01:32]} Rxc5 {[%emt 0:00:07]} 32. Nxc5 $16 {[%emt 0:00:09][%mdl 4096] Endgame. KRB-KRN} Ra2 {[%emt 0:01:55]} 33. Rxb7 {[%emt 0:00:08]} h5 {[%emt 0:00:21]} 34. Ne4 {[%emt 0:01:01]} Kg7 {[%emt 0:00:02]} 35. h3 {[%emt 0:00:43]} Ra5 {[%emt 0:00:18]} 36. Rd7 {[%emt 0:00:25] White is more active.} Ra8 {[%emt 0:00:40]} 37. g4 {[%emt 0:02:20] g5 is the strong threat.} hxg4 {[%emt 0:00:05]} (37... Bh4 $142 38. gxh5 gxh5) 38. hxg4 {[%emt 0:00:03] Black must now prevent g5. White is clearly better.} g5 {[%emt 0:00:09]} (38... Bh4 $16 39. g5 Ra5) 39. Rb7 $18 {[%emt 0:02:33]} Rd8 {[%emt 0:00:12]} 40. Rb5 {[%emt 0:00:11]} Kg6 {[%emt 0:00:08] [#]} 41. Rf5 $1 {[%emt 0:30:18] Weighted Error Value: White=0.07 (flawless) /Black=0.16 (very precise) . Mistake: 	White=1 	Black=4 Inaccurate: 	--- 	Black=2 OK: 	White=12 	Black=12 Best: 	White=2 	--- Strong: 	White=1 	---} 1-0